bitfinex/quotes_BTCUSD_20250422
["timestamp","ask_amount","ask_price","bid_price","bid_amount"]
[1745301801901,0.22646978,88312.0,88310.0,0.01347481]
[1745301802522,0.17407904,88315.0,88310.0,0.25127215]
[1745301803129,0.22647235,88311.0,88310.0,0.01347481]
[1745301809520,0.22647235,88311.0,88310.0,0.0008456]
[1745301809521,0.34022829,88311.0,88310.0,0.0008456]
[1745301809722,0.79352829,88311.0,88310.0,0.0008456]
[1745301810104,0.84192829,88311.0,88310.0,0.0008456]
[1745301810829,0.84192829,88311.0,88310.0,0.0079158]
[1745301811330,0.84392829,88311.0,88310.0,0.0079158]
[1745301812289,0.84692829,88311.0,88310.0,0.0079158]
[1745301812669,1.07070119,88311.0,88310.0,0.0079158]
[1745301813092,1.07864558,88311.0,88310.0,0.0079158]
[1745301813441,1.07864558,88311.0,88310.0,0.0008456]
[1745301816973,1.07964558,88311.0,88310.0,0.0008456]
[1745301818280,1.07764558,88311.0,88310.0,0.0008456]
[1745301818506,0.96389353,88311.0,88310.0,0.0008456]
[1745301818935,0.96589353,88311.0,88310.0,0.0008456]
[1745301819352,0.95794914,88311.0,88310.0,0.0008456]
[1745301821732,1.29794914,88311.0,88310.0,1e-08]
[1745301822140,1.41170119,88311.0,88310.0,1e-08]
[1745301822316,0.22650826,88297.0,88293.0,0.0008456]
[1745301822515,0.74776419,88297.0,88293.0,0.0008456]
[1745301823558,0.74876419,88297.0,88293.0,0.0008456]
[1745301835264,0.22656749,88274.0,88272.0,0.34]
[1745301835427,0.01132823,88275.0,88272.0,0.34]
[1745301835634,0.01132823,88275.0,88273.0,0.0070716]
[1745301836234,0.01132823,88275.0,88274.0,0.0070716]
[1745301836454,0.01132849,88273.0,88267.0,0.0967]
[1745301836639,0.01132849,88273.0,88267.0,0.10807578]
[1745301836840,0.01132823,88275.0,88270.0,0.2379061]
[1745301837041,0.01132874,88271.0,88268.0,0.01132913]
[1745301837359,0.23789079,88276.0,88272.0,0.01132862]
[1745301837558,0.23789079,88276.0,88273.0,0.002]
[1745301837960,0.23789079,88276.0,88272.0,0.02365295]
[1745301838548,0.22656984,88273.0,88272.0,0.01232433]
[1745301838762,0.01132862,88272.0,88268.0,0.01132913]
[1745301839182,0.01132874,88271.0,88268.0,0.01132913]
[1745301839383,0.01132862,88272.0,88269.0,0.011329]
[1745301839584,0.01132862,88272.0,88268.0,0.01132913]
[1745301839813,0.01132836,88274.0,88270.0,0.01132887]
[1745301840011,0.01132862,88272.0,88270.0,0.01270026]
[1745301840243,0.01032862,88272.0,88268.0,0.01132913]
[1745301840578,0.01032862,88272.0,88268.0,0.2379096]
[1745301840783,0.01132849,88273.0,88268.0,0.2379096]
[1745301840983,0.01132862,88272.0,88268.0,0.2379096]
[1745301841245,0.01132862,88272.0,88270.0,0.001]
[1745301841606,0.01132836,88274.0,88271.0,0.23790371]
[1745301841803,0.01132823,88275.0,88271.0,0.23790371]
[1745301842005,0.22657923,88270.0,88268.0,0.001]
[1745301842206,0.01132849,88273.0,88269.0,0.011329]
[1745301842836,0.01132849,88273.0,88269.0,0.23790736]
[1745301843040,0.01132836,88274.0,88271.0,0.01132874]
[1745301844196,0.001,88273.0,88271.0,0.01132874]
[1745301844709,0.01132836,88274.0,88271.0,0.01132874]
[1745301844933,0.01232836,88274.0,88271.0,0.01132874]
[1745301846161,0.01132836,88274.0,88271.0,0.01132874]
[1745301846364,0.001,88273.0,88272.0,0.01132862]
[1745301846579,0.001,88273.0,88272.0,0.05772862]
[1745301846980,0.001,88275.0,88273.0,0.22656984]
[1745301847183,0.001,88274.0,88273.0,0.22656984]
[1745301847704,0.001,88275.0,88273.0,0.22656984]
[1745301848075,0.002,88275.0,88273.0,0.22656984]
[1745301848489,0.002,88275.0,88274.0,0.34]
[1745301848663,0.002,88275.0,88274.0,0.4358]
[1745301848876,0.002,88275.0,88274.0,0.44287073]
[1745301850006,0.001,88275.0,88274.0,0.44287073]
[1745301850982,0.001,88275.0,88274.0,0.44387073]
[1745301851366,0.001,88275.0,88274.0,0.44287073]
[1745301851567,0.001,88275.0,88274.0,0.44387073]
[1745301852672,0.001,88275.0,88274.0,0.44487073]
[1745301858763,0.001,88275.0,88274.0,0.39847073]
[1745301859143,0.001,88275.0,88274.0,0.3914]
[1745301863519,0.001,88275.0,88274.0,0.4368]
[1745301868929,0.001,88275.0,88274.0,0.3914]
[1745301869160,0.001,88275.0,88274.0,0.342]
[1745301870873,0.0489,88293.0,88290.0,0.01132631]
[1745301871219,0.0499,88293.0,88290.0,0.01132631]
[1745301871426,0.0499,88293.0,88290.0,0.23785179]
[1745301871848,0.28774691,88293.0,88288.0,0.23785759]
[1745301872162,0.22653391,88287.0,88284.0,0.34]
[1745301872388,0.01132656,88288.0,88285.0,0.01132695]
[1745301872789,0.01132669,88287.0,88284.0,0.35132708]
[1745301873146,0.01132656,88288.0,88285.0,0.23786599]
[1745301873353,0.01132656,88288.0,88286.0,0.34]
[1745301873744,0.01132656,88288.0,88285.0,0.23786599]
[1745301874406,0.01132656,88288.0,88285.0,0.01132695]
[1745301875489,0.01232656,88288.0,88285.0,0.01132695]
[1745301875667,0.001,88288.0,88286.0,0.22653648]
[1745301876089,0.01132618,88291.0,88288.0,0.01132656]
[1745301876905,0.06122592,88293.0,88289.0,0.01132643]
[1745301877922,0.01132605,88292.0,88289.0,0.01132643]
[1745301878832,0.0477,88288.0,88282.0,0.01132733]
[1745301878974,0.05902656,88288.0,88284.0,0.01132708]
[1745301879182,0.0477,88288.0,88285.0,0.22653749]
[1745301879692,0.0477,88288.0,88286.0,0.22653501]
[1745301880325,0.01132605,88292.0,88289.0,0.23785507]
[1745301881298,0.01132605,88292.0,88290.0,0.00707061]
[1745301881639,0.01232605,88292.0,88291.0,0.00707061]
[1745301882497,0.01332605,88292.0,88291.0,0.00707061]
[1745301882695,0.01432605,88292.0,88291.0,0.00707061]
[1745301883076,0.01332605,88292.0,88289.0,0.01132643]
[1745301883813,0.01432605,88292.0,88289.0,0.01132643]
[1745301884018,0.01332605,88292.0,88289.0,0.01132643]
[1745301884513,0.01132618,88291.0,88287.0,0.01132669]
[1745301885400,0.01132618,88291.0,88288.0,0.23785791]
[1745301885964,0.01132618,88291.0,88288.0,0.01132656]
[1745301886285,0.01232618,88291.0,88288.0,0.01132656]
[1745301886825,0.001,88292.0,88289.0,0.01132643]
[1745301887140,0.001,88291.0,88290.0,0.00707061]
[1745301888350,0.001,88292.0,88290.0,0.00707061]
[1745301888548,0.002,88292.0,88290.0,0.00707061]
[1745301888774,0.001,88291.0,88290.0,0.00707061]
[1745301888972,0.001,88291.0,88289.0,0.01132643]
[1745301889174,0.001,88291.0,88290.0,0.00707061]
[1745301889331,0.002,88291.0,88290.0,0.00707061]
[1745301889760,0.001,88291.0,88290.0,0.00707061]
[1745301891617,0.002,88291.0,88290.0,0.00707061]
[1745301899664,0.002,88291.0,88290.0,0.00827061]
[1745301900307,0.002,88291.0,88290.0,0.34827061]
[1745301901661,0.001,88292.0,88291.0,0.56652365]
[1745301901985,0.001,88292.0,88291.0,0.61622365]
[1745301902255,0.001,88292.0,88291.0,0.62329426]
[1745301902397,0.001,88292.0,88291.0,0.67169426]
[1745301904284,0.001,88292.0,88291.0,0.67269426]
[1745301904811,0.001,88292.0,88291.0,0.67369426]
[1745301906540,0.001,88292.0,88291.0,0.62399426]
[1745301906669,0.001,88292.0,88291.0,0.56852365]
[1745301907693,0.001,88292.0,88291.0,0.57559245]
[1745301909546,0.001,88292.0,88291.0,0.3490688]
[1745301909965,0.001,88292.0,88291.0,0.3480688]
[1745301910091,0.001,88292.0,88291.0,0.3470688]
[1745301910305,0.001,88292.0,88291.0,0.3490688]
[1745301910508,0.27742108,88292.0,88291.0,0.3490688]
[1745301910744,0.27742108,88292.0,88291.0,0.3470688]
[1745301910985,0.27942108,88292.0,88291.0,0.3470688]
[1745301911922,0.0529,88292.0,88291.0,0.57359245]
[1745301912269,0.0539,88292.0,88291.0,0.57359245]
[1745301914124,0.0539,88292.0,88291.0,0.58409118]
[1745301914888,0.0539,88292.0,88291.0,0.57359245]
[1745301915295,0.0539,88292.0,88291.0,0.3470688]
[1745301915644,0.22651783,88294.0,88292.0,0.34]
[1745301915845,0.22651783,88294.0,88291.0,0.0080688]
[1745301915846,0.23784362,88294.0,88291.0,0.0080688]
[1745301916207,0.23784362,88294.0,88292.0,0.0070688]
[1745301916629,0.23784362,88294.0,88291.0,0.001]
[1745301916630,0.22651595,88294.0,88293.0,0.0070688]
[1745301916832,0.001,88294.0,88293.0,0.0070688]
[1745301916992,0.002,88294.0,88293.0,0.0070688]
[1745301917402,0.001,88294.0,88293.0,0.0070688]
[1745301917855,0.002,88294.0,88293.0,0.0070688]
[1745301918083,0.01232579,88294.0,88293.0,0.00707027]
[1745301918638,0.001,88294.0,88293.0,0.00707027]
[1745301919519,0.32291595,88294.0,88293.0,0.00707027]
[1745301919740,0.43667189,88294.0,88293.0,0.00707027]
[1745301920714,0.43567189,88294.0,88293.0,0.00707027]
[1745301921178,0.43667189,88294.0,88293.0,0.00707027]
[1745301921383,0.43767189,88294.0,88293.0,0.00707027]
[1745301924402,0.43767189,88294.0,88293.0,0.01757116]
[1745301926795,0.22652715,88290.0,88285.0,0.34]
[1745301928371,0.01132618,88291.0,88286.0,0.2378633]
[1745301928681,0.01132618,88291.0,88285.0,0.01132695]
[1745301928682,0.01132643,88289.0,88285.0,0.01132695]
[1745301929097,0.01132643,88289.0,88286.0,0.01132682]
[1745301929320,0.0473,88290.0,88287.0,0.01132669]
[1745301929537,0.0463,88290.0,88287.0,0.01132669]
[1745301930695,0.05762566,88295.0,88287.0,0.01132669]
[1745301930999,0.001,88289.0,88287.0,0.01132669]
[1745301931199,0.001,88289.0,88288.0,0.00951706]
[1745301931495,0.001,88289.0,88288.0,0.22653135]
[1745301931677,0.001,88289.0,88288.0,0.00976876]
[1745301932145,0.11375594,88293.0,88290.0,0.01132631]
[1745301932766,0.11375594,88293.0,88291.0,0.00976876]
[1745301933188,0.23784713,88292.0,88287.0,0.23785942]
[1745301933406,0.11475594,88293.0,88290.0,0.23785062]
[1745301933813,0.11375594,88293.0,88290.0,0.23785062]
[1745301934015,0.11475594,88293.0,88290.0,0.23785062]
[1745301934412,0.23784713,88292.0,88288.0,0.22653035]
[1745301934621,0.11475594,88293.0,88290.0,0.01132631]
[1745301934804,0.11575594,88293.0,88290.0,0.01132631]
[1745301935002,0.23784713,88292.0,88288.0,0.01132656]
[1745301935204,0.11575594,88293.0,88290.0,0.01132631]
[1745301935739,0.23784713,88292.0,88288.0,0.01132656]
[1745301935937,0.11475594,88293.0,88290.0,0.01132631]
[1745301936121,0.11475594,88293.0,88288.0,0.01132656]
[1745301936335,0.23784713,88292.0,88288.0,0.01132656]
[1745301936531,0.01132618,88291.0,88288.0,0.01132656]
[1745301936716,0.001,88292.0,88289.0,0.23785521]
[1745301936911,0.01132618,88291.0,88288.0,0.23785683]
[1745301937180,0.22652108,88292.0,88288.0,0.01132656]
[1745301937738,0.01132656,88288.0,88285.0,0.34]
[1745301937911,0.01132643,88289.0,88285.0,0.35132695]
[1745301938116,0.01132643,88289.0,88286.0,0.01132682]
[1745301939137,0.23785694,88289.0,88285.0,0.35132695]
[1745301939370,0.01132643,88289.0,88286.0,0.01132682]
[1745301940452,0.01232643,88289.0,88286.0,0.01132682]
[1745301941234,0.23785791,88288.0,88285.0,0.35132695]
[1745301941433,0.01132656,88288.0,88285.0,0.35132695]
[1745301941860,0.01332643,88289.0,88286.0,0.01132682]
[1745301942059,0.01232643,88289.0,88287.0,0.00977975]
[1745301942459,0.001,88288.0,88287.0,0.00977975]
[1745301943061,0.01132862,88272.0,88269.0,0.01287672]
[1745301943259,0.01132862,88272.0,88271.0,0.34]
[1745301943464,0.01132797,88277.0,88272.0,0.01132862]
[1745301943665,0.01132797,88277.0,88274.0,0.35132836]
[1745301943864,0.0498,88278.0,88275.0,0.00978158]
[1745301944083,0.22656139,88277.0,88275.0,0.00978158]
[1745301944910,0.06112785,88278.0,88275.0,0.00978158]
[1745301945112,0.22656214,88276.0,88273.0,0.34]
[1745301945322,0.22656675,88275.0,88273.0,0.34]
[1745301945523,0.22656727,88274.0,88273.0,0.34]
[1745301945674,0.23789024,88276.0,88273.0,0.34]
[1745301946074,0.22656727,88274.0,88271.0,0.01132874]
[1745301946676,0.23789024,88276.0,88273.0,0.35132849]
[1745301946677,0.0113281,88276.0,88273.0,0.35132849]
[1745301946879,0.11375594,88277.0,88276.0,0.34]
[1745301947519,0.0474,88284.0,88279.0,0.22655444]
[1745301947748,0.0474,88284.0,88281.0,0.23787425]
[1745301948107,0.0474,88284.0,88282.0,0.01052477]
[1745301948482,0.11375594,88283.0,88282.0,0.01052477]
[1745301949871,0.11475594,88283.0,88282.0,0.01052477]
[1745301950086,0.11575594,88283.0,88282.0,0.01052477]
[1745301951046,0.002,88283.0,88282.0,0.01052477]
[1745301956998,0.002,88283.0,88282.0,0.02036805]
[1745301958075,0.27494418,88283.0,88282.0,0.02036805]
[1745301958221,0.0484,88283.0,88282.0,0.02036805]
[1745301960250,0.002,88283.0,88282.0,0.02036805]
[1745301964608,0.22854418,88283.0,88282.0,0.02036805]
[1745301965171,0.002,88283.0,88282.0,0.02036805]
[1745301965858,0.002,88283.0,88282.0,0.24691479]
[1745301967064,0.002,88283.0,88282.0,0.02036805]
[1745301967576,0.22854418,88283.0,88282.0,0.02036805]
[1745301967995,0.002,88283.0,88282.0,0.02036805]
[1745301970951,0.22854418,88283.0,88282.0,0.02036805]
[1745301974952,0.002,88283.0,88282.0,0.02036805]
[1745301977673,0.11575594,88283.0,88282.0,0.02036805]
[1745301977855,0.11575594,88283.0,88282.0,0.01052477]
[1745301977856,0.52325593,88283.0,88282.0,0.01052477]
[1745301978053,0.57065593,88283.0,88282.0,0.01052477]
[1745301984449,0.61835593,88283.0,88282.0,0.01052477]
[1745301985274,0.61735593,88283.0,88282.0,0.01052477]
[1745301985908,0.61935593,88283.0,88282.0,0.01052477]
[1745301986558,0.62135593,88283.0,88282.0,0.01052477]
[1745301986945,0.61935593,88283.0,88282.0,0.01052477]
[1745301987166,0.61735593,88283.0,88282.0,0.01052477]
[1745301987345,0.62235593,88283.0,88282.0,0.01052477]
[1745301988081,0.01132887,88270.0,88267.0,0.01445602]
[1745301988238,0.11375594,88269.0,88267.0,0.01445602]
[1745301988442,0.34033605,88269.0,88267.0,0.01445602]
[1745301989144,0.11375594,88269.0,88267.0,0.01445602]
[1745301989340,0.01132849,88273.0,88269.0,0.011329]
[1745301989554,0.12508456,88272.0,88269.0,0.011329]
[1745301989801,0.12508456,88272.0,88267.0,0.25237002]
[1745301989802,0.001,88270.0,88267.0,0.25237002]
[1745301989976,0.11475594,88270.0,88268.0,0.0105188]
[1745301990177,0.11375594,88270.0,88268.0,0.0105188]
[1745301990413,0.001,88269.0,88268.0,0.0105188]
[1745301990835,0.11375594,88270.0,88268.0,0.0105188]
[1745301990990,0.11475594,88270.0,88268.0,0.0105188]
[1745301991727,0.001,88269.0,88268.0,0.0105188]
[1745301991891,0.11475594,88270.0,88267.0,0.25237002]
[1745301992562,0.12608481,88270.0,88267.0,0.25237002]
[1745301992686,0.12508481,88270.0,88268.0,0.01051841]
[1745301992896,0.001,88269.0,88268.0,0.01051841]
[1745301993293,0.12608481,88270.0,88268.0,0.01051841]
[1745301993683,0.12708481,88270.0,88268.0,0.01051841]
[1745301993886,0.12608481,88270.0,88269.0,0.01051841]
[1745301994093,0.12508481,88270.0,88269.0,0.01051841]
[1745301994503,0.12608481,88270.0,88269.0,0.01051841]
[1745301995222,0.11475594,88270.0,88269.0,0.01051841]
[1745301995516,0.002,88270.0,88269.0,0.01051841]
[1745301996137,0.001,88270.0,88269.0,0.01051841]
[1745301996943,0.002,88270.0,88269.0,0.01051841]
[1745302001880,0.002,88270.0,88269.0,0.01899851]
[1745302003894,0.002,88270.0,88269.0,0.24557862]
[1745302004556,0.22857754,88270.0,88269.0,0.01899851]
[1745302004989,0.22857754,88270.0,88269.0,0.01051841]
[1745302009711,0.22658268,88268.0,88267.0,0.01445602]
[1745302009902,0.22658268,88268.0,88267.0,0.02297686]
[1745302010941,0.22858268,88268.0,88267.0,0.02297686]
[1745302011290,0.22858268,88268.0,88261.0,0.34]
[1745302011291,0.23791801,88266.0,88261.0,0.34]
[1745302011502,0.23791801,88266.0,88261.0,0.3544324]
[1745302012458,0.01132951,88265.0,88262.0,0.0113299]
[1745302015008,0.23792165,88265.0,88261.0,0.36576243]
[1745302015325,0.01132964,88264.0,88261.0,0.36576243]
[1745302016686,0.23792488,88264.0,88261.0,0.3544324]
[1745302016890,0.23792488,88264.0,88261.0,0.0144324]
[1745302017937,0.226597,88263.0,88261.0,0.0144324]
[1745302018991,0.226597,88263.0,88262.0,0.00708195]
[1745302019873,0.01132964,88264.0,88262.0,0.00708195]
[1745302020019,0.01132939,88266.0,88262.0,0.24500811]
[1745302020219,0.01132939,88266.0,88263.0,0.01132977]
[1745302020439,0.01132913,88268.0,88264.0,0.01132964]
[1745302020647,0.01132913,88268.0,88265.0,0.00708195]
[1745302021309,0.011329,88269.0,88266.0,0.01132939]
[1745302021470,0.01132913,88268.0,88264.0,0.01132964]
[1745302021671,0.23791181,88268.0,88265.0,0.00708195]
[1745302022311,0.23891181,88268.0,88265.0,0.00708195]
[1745302023117,0.23991181,88268.0,88265.0,0.00708195]
[1745302023729,0.01332913,88268.0,88265.0,0.00708195]
[1745302024495,0.002,88268.0,88267.0,0.34]
[1745302025026,0.002,88268.0,88267.0,0.34708195]
[1745302025586,0.01132733,88282.0,88278.0,0.01132785]
[1745302025966,0.01132759,88280.0,88277.0,0.01132797]
[1745302026168,0.01132823,88275.0,88270.0,0.01132887]
[1745302026374,0.01132785,88278.0,88273.0,0.01132849]
[1745302026533,0.0113281,88276.0,88271.0,0.01132874]
[1745302026743,0.0113281,88276.0,88273.0,0.01132849]
[1745302026946,0.01132785,88278.0,88274.0,0.01132836]
[1745302027153,0.22656471,88275.0,88269.0,0.23790737]
[1745302027359,0.01232823,88275.0,88270.0,0.01132887]
[1745302027690,0.01132849,88273.0,88269.0,0.23790737]
[1745302028109,0.01132862,88272.0,88269.0,0.011329]
[1745302028311,0.01132874,88271.0,88267.0,0.2265832]
[1745302028860,0.01132874,88271.0,88266.0,0.01132939]
[1745302029059,0.01132874,88271.0,88254.0,0.27326377]
[1745302029060,0.01132951,88265.0,88261.0,0.0144324]
[1745302029180,0.01132964,88264.0,88261.0,0.0144324]
[1745302029380,0.01132951,88265.0,88261.0,0.02576243]
[1745302029675,0.01132939,88266.0,88263.0,0.23792461]
[1745302029834,0.01132939,88266.0,88263.0,0.01132977]
[1745302030687,0.011329,88269.0,88265.0,0.01132951]
[1745302030897,0.011329,88269.0,88263.0,0.23792453]
[1745302031098,0.001,88271.0,88268.0,0.01132913]
[1745302031341,0.01132862,88272.0,88269.0,0.011329]
[1745302031560,0.12508456,88272.0,88269.0,0.011329]
[1745302032110,0.23789569,88274.0,88270.0,0.00707262]
[1745302032438,0.001,88271.0,88270.0,0.01840149]
[1745302033666,0.001,88271.0,88270.0,0.24497903]
[1745302034164,0.001,88271.0,88270.0,0.01840149]
[1745302034366,0.001,88271.0,88270.0,0.00707262]
[1745302034590,0.01132887,88270.0,88267.0,0.01132926]
[1745302034842,0.002,88271.0,88267.0,0.01132926]
[1745302035166,0.01132887,88270.0,88266.0,0.23791567]
[1745302035384,0.01132887,88270.0,88264.0,0.01132964]
[1745302035597,0.01132887,88270.0,88265.0,0.22659038]
[1745302035762,0.2379028,88272.0,88267.0,0.23791258]
[1745302036173,0.001,88271.0,88267.0,0.23791258]
[1745302036330,0.2379028,88272.0,88267.0,0.23791258]
[1745302036516,0.01132862,88272.0,88267.0,0.23791258]
[1745302036715,0.001,88270.0,88268.0,0.01132913]
[1745302036909,0.002,88270.0,88268.0,0.01132913]
[1745302037354,0.001,88270.0,88268.0,0.01132913]
[1745302037995,0.23890191,88272.0,88268.0,0.01132913]
[1745302038163,0.001,88271.0,88268.0,0.01132913]
[1745302038859,0.23790191,88272.0,88268.0,0.01132913]
[1745302039070,0.001,88270.0,88268.0,0.01132913]
[1745302039464,0.01132862,88272.0,88269.0,0.23790911]
[1745302039676,0.001,88271.0,88269.0,0.23790911]
[1745302040204,0.001,88270.0,88269.0,0.23790911]
[1745302040609,0.001,88271.0,88269.0,0.23790911]
[1745302040813,0.01132823,88275.0,88272.0,0.01132862]
[1745302041414,0.41882784,88278.0,88274.0,0.23789563]
[1745302041651,0.11375594,88277.0,88274.0,0.23789563]
[1745302042092,0.001,88275.0,88274.0,0.23789563]
[1745302042461,0.002,88275.0,88274.0,0.23789563]
[1745302042899,0.001,88275.0,88274.0,0.23789563]
[1745302044214,0.01232823,88275.0,88269.0,0.011329]
[1745302044393,0.11375594,88277.0,88276.0,0.22656214]
[1745302044740,0.11375594,88277.0,88274.0,0.01132836]
[1745302044741,0.001,88275.0,88274.0,0.01132836]
[1745302044914,0.001,88275.0,88272.0,0.01132862]
[1745302045241,0.001,88275.0,88273.0,0.22656984]
[1745302046790,0.001,88275.0,88273.0,0.22656968]
[1745302046991,0.001,88275.0,88274.0,0.00706604]
[1745302047202,0.002,88275.0,88274.0,0.00706604]
[1745302047407,0.001,88275.0,88274.0,0.00706604]
[1745302047827,0.001,88275.0,88272.0,0.35132862]
[1745302047828,0.001,88274.0,88272.0,0.35132862]
[1745302048753,0.01132823,88275.0,88272.0,0.35132862]
[1745302048950,0.001,88274.0,88272.0,0.35132862]
[1745302049144,0.001,88274.0,88273.0,0.56656984]
[1745302050388,0.001,88275.0,88274.0,0.34]
[1745302050916,0.40749999,88278.0,88277.0,0.22655957]
[1745302051408,0.40749999,88278.0,88274.0,0.01132836]
[1745302051632,0.001,88275.0,88274.0,0.35132836]
[1745302051833,0.001,88275.0,88274.0,0.57789563]
[1745302052408,0.001,88275.0,88274.0,0.56656727]
[1745302052995,0.002,88275.0,88274.0,0.56656727]
[1745302053395,0.001,88275.0,88274.0,0.56656727]
[1745302053733,0.002,88275.0,88274.0,0.56656727]
[1745302058797,0.002,88275.0,88274.0,0.22656727]
[1745302062083,0.002,88275.0,88274.0,0.23356351]
[1745302064550,0.002,88275.0,88274.0,0.00699624]
[1745302064760,0.23989486,88275.0,88270.0,0.01132887]
[1745302064977,0.01132836,88274.0,88271.0,0.006971]
[1745302065981,0.22656984,88273.0,88271.0,0.006971]
[1745302066318,0.23790371,88271.0,88266.0,0.01132939]
[1745302066670,0.01132874,88271.0,88268.0,0.01132913]
[1745302067408,0.01132887,88270.0,88266.0,0.01132939]
[1745302067756,0.01132926,88267.0,88264.0,0.01132964]
[1745302067958,0.01132964,88264.0,88261.0,0.0144324]
[1745302068200,0.01132913,88268.0,88261.0,0.02576243]
[1745302068379,0.01132913,88268.0,88263.0,0.22659352]
[1745302068742,0.23790578,88271.0,88266.0,0.22658708]
[1745302068874,0.11375594,88271.0,88270.0,0.01132887]
[1745302069257,0.11375594,88271.0,88268.0,0.22658268]
[1745302069480,0.11375594,88271.0,88269.0,0.22658011]
[1745302069707,0.11375594,88271.0,88268.0,0.01132913]
[1745302069935,0.12508468,88271.0,88268.0,0.01132913]
[1745302070337,0.11375594,88271.0,88269.0,0.22658011]
[1745302070540,0.11475594,88271.0,88269.0,0.22658011]
[1745302071146,0.11575594,88271.0,88269.0,0.22658011]
[1745302071346,0.12608468,88271.0,88268.0,0.01132913]
[1745302071773,0.11575594,88271.0,88268.0,0.01132913]
[1745302072390,0.01132887,88270.0,88265.0,0.01132951]
[1745302073150,0.22658016,88269.0,88265.0,0.01132951]
[1745302073568,0.23790916,88269.0,88265.0,0.01132951]
[1745302073771,0.11375594,88271.0,88270.0,0.22657754]
[1745302074228,0.11375594,88271.0,88268.0,0.01132913]
[1745302074864,0.11475594,88271.0,88265.0,0.01132951]
[1745302075069,0.01132887,88270.0,88266.0,0.23791507]
[1745302075280,0.01132887,88270.0,88266.0,0.24490931]
[1745302077032,0.01232887,88270.0,88266.0,0.24490931]
[1745302077945,0.001,88270.0,88268.0,0.22658251]
[1745302078521,0.001,88270.0,88269.0,0.00699424]
[1745302079278,0.11375594,88271.0,88269.0,0.00699424]
[1745302079522,0.11375594,88271.0,88268.0,0.01132913]
[1745302079726,0.001,88270.0,88268.0,0.23791136]
[1745302080187,0.11375594,88271.0,88270.0,0.22657754]
[1745302080554,0.11475594,88271.0,88270.0,0.22657754]
[1745302080969,0.11375594,88271.0,88268.0,0.23791136]
[1745302081351,0.11475594,88271.0,88268.0,0.01132913]
[1745302081652,0.001,88270.0,88268.0,0.01132913]
[1745302082053,0.001,88270.0,88268.0,0.2379114]
[1745302082945,0.11375594,88271.0,88268.0,0.2379114]
[1745302083278,0.11575594,88271.0,88268.0,0.01132913]
[1745302083629,0.11475594,88271.0,88268.0,0.01132913]
[1745302083850,0.001,88270.0,88268.0,0.23791178]
[1745302084720,0.11475594,88271.0,88269.0,0.22658011]
[1745302085304,0.11475594,88271.0,88268.0,0.01132913]
[1745302085910,0.11475594,88271.0,88269.0,0.22658011]
[1745302086116,0.11475594,88271.0,88270.0,0.22657754]
[1745302086437,0.11375594,88271.0,88268.0,0.23791109]
[1745302086631,0.002,88270.0,88268.0,0.23791109]
[1745302087034,0.001,88270.0,88268.0,0.23791109]
[1745302087181,0.11475594,88271.0,88268.0,0.01132913]
[1745302087834,0.001,88270.0,88269.0,0.22657797]
[1745302087988,0.11375594,88271.0,88268.0,0.2379097]
[1745302088432,0.11475594,88271.0,88268.0,0.2379097]
[1745302088663,0.11475594,88271.0,88267.0,0.01132926]
[1745302089198,0.001,88270.0,88268.0,0.01132913]
[1745302089575,0.11375594,88271.0,88268.0,0.01132913]
[1745302090073,0.001,88270.0,88268.0,0.01132913]
[1745302090282,0.001,88270.0,88266.0,0.01132939]
[1745302090501,0.001,88270.0,88267.0,0.01132926]
[1745302090722,0.11475594,88271.0,88268.0,0.01132913]
[1745302091108,0.001,88270.0,88268.0,0.01132913]
[1745302091403,0.11475594,88271.0,88268.0,0.01132913]
[1745302091629,0.001,88270.0,88268.0,0.01132913]
[1745302091950,0.001,88270.0,88269.0,0.0069795]
[1745302092753,0.11375594,88271.0,88269.0,0.0069795]
[1745302092954,0.001,88270.0,88269.0,0.0069795]
[1745302093202,0.002,88270.0,88269.0,0.0069795]
[1745302093414,0.11375594,88271.0,88269.0,0.0069795]
[1745302093587,0.001,88270.0,88267.0,0.01132926]
[1745302093789,0.002,88270.0,88268.0,0.0069795]
[1745302094378,0.11375594,88271.0,88268.0,0.01830863]
[1745302094689,0.001,88270.0,88269.0,0.22658011]
[1745302095077,0.001,88270.0,88269.0,0.23353404]
[1745302095692,0.001,88270.0,88269.0,0.00695393]
[1745302095880,0.11375594,88271.0,88269.0,0.23353404]
[1745302096082,0.001,88270.0,88269.0,0.23353404]
[1745302096280,0.002,88270.0,88269.0,0.23353404]
[1745302096521,0.11375594,88271.0,88269.0,0.23353404]
[1745302096697,0.11375594,88271.0,88269.0,0.23353288]
[1745302096899,0.001,88270.0,88269.0,0.23353288]
[1745302097166,0.001,88270.0,88269.0,0.00695393]
[1745302097318,0.001,88270.0,88269.0,0.23353404]
[1745302097522,0.001,88270.0,88269.0,0.22658011]
[1745302097703,0.11475594,88271.0,88269.0,0.23353404]
[1745302097901,0.11575594,88271.0,88269.0,0.23353404]
[1745302099111,0.11475594,88271.0,88269.0,0.23353404]
[1745302099319,0.11375594,88271.0,88269.0,0.23353404]
[1745302099522,0.001,88270.0,88269.0,0.23353404]
[1745302099728,0.11375594,88271.0,88269.0,0.23353191]
[1745302099928,0.001,88270.0,88269.0,0.23353191]
[1745302102634,0.002,88270.0,88269.0,0.23353191]
[1745302102838,0.002,88270.0,88269.0,0.00695393]
[1745302103247,0.002,88270.0,88269.0,0.23353404]
[1745302114681,0.002,88270.0,88269.0,0.00695393]
[1745302115147,0.002,88270.0,88266.0,0.01132939]
[1745302115462,0.01332887,88270.0,88266.0,0.01132939]
[1745302115663,0.002,88270.0,88267.0,0.00688214]
[1745302115862,0.001,88270.0,88267.0,0.00688214]
[1745302116060,0.05752874,88271.0,88267.0,0.00688214]
[1745302116266,0.01132887,88270.0,88267.0,0.00688214]
[1745302116473,0.01232887,88270.0,88267.0,0.00688214]
[1745302116659,0.01232887,88270.0,88266.0,0.01132939]
[1745302116854,0.01232887,88270.0,88268.0,0.00688214]
[1745302117201,0.01232887,88270.0,88266.0,0.01132939]
[1745302117379,0.01232887,88270.0,88269.0,0.00688214]
[1745302117585,0.01132887,88270.0,88269.0,0.00688214]
[1745302117778,0.011329,88269.0,88265.0,0.01132951]
[1745302117947,0.01132887,88270.0,88265.0,0.01132951]
[1745302118391,0.011329,88269.0,88264.0,0.01132964]
[1745302118708,0.011329,88269.0,88265.0,0.01132951]
[1745302118938,0.011329,88269.0,88261.0,0.02576243]
[1745302118939,0.01132939,88266.0,88261.0,0.02576243]
[1745302119135,0.11375594,88265.0,88261.0,0.02576243]